[Event "Dutch Open-ch 2019"]
[Site "Dieren"]
[Date "2019.07.26"]
[Round "4.2"]
[White "Reinderman, Dimitri"]
[Black "Vrolijk, Liam"]
[Result "1/2-1/2"]
[ECO "A23"]
[WhiteElo "2583"]
[BlackElo "2478"]
[Annotator "ChessBase"]
[PlyCount "61"]
[EventDate "2019.07.23"]
[EventType "swiss"]
[EventCountry "NED"]
[SourceTitle "playchess.com"]
[Source "ChessBase"]
[SourceQuality "1"]
[TimeControl "40/5400+30:1800+30"]

1. c4 {[%emt 0:00:00]} e5 {[%emt 0:00:00]} 2. Nc3 {[%emt 0:00:00]} Nf6 {[%emt 0:00:00]} 3. g3 {[%emt 0:00:00]} Bc5 {[%emt 0:00:23]} 4. Bg2 {[%emt 0:00:16]} c6 {[%emt 0:00:33]} 5. e3 {[%emt 0:07:57]} Bb6 {[%emt 0:00:52]} 6. d4 {[%emt 0:02:47]} exd4 {[%emt 0:00:42]} 7. exd4 {[%emt 0:00:04]} d5 {[%emt 0:00:29]} 8. cxd5 {[%emt 0:01:12]} Nxd5 {[%emt 0:03:08]} 9. Nxd5 {[%emt 0:02:21]} cxd5 {[%emt 0:00:08]} 10. Ne2 {[%emt 0:01:59]} Nc6 {[%emt 0:01:42]} 11. Be3 {[%emt 0:01:17]} O-O {[%emt 0:03:45]} 12. Nc3 {[%emt 0:03:39]} Be6 {[%emt 0:07:19]} 13. O-O {[%emt 0:00:29]} Qf6 {[%emt 0:10:22]} 14. Nxd5 {[%emt 0:18:42]} Bxd5 {[%emt 0:03:56]} 15. Bxd5 {[%emt 0:00:07]} Rad8 {[%emt 0:02:16]} 16. Qf3 {[%emt 0:16:52]} Qxf3 {[%emt 0:02:19]} 17. Bxf3 {[%emt 0:00:18]} Bxd4 {[%emt 0:01:02]} 18. Bxc6 {[%emt 0:07:44]} Bxe3 {[%emt 0:01:37]} 19. fxe3 {[%emt 0:06:00]} bxc6 {[%emt 0:00:21]} 20. Rfd1 {[%emt 0:00:14]} Rfe8 {[%emt 0:04:25]} 21. Kf2 {[%emt 0:01:36]} Kf8 {[%emt 0:03:01]} 22. Ke2 {[%emt 0:00:42]} Ke7 {[%emt 0:01:53]} 23. b3 {[%emt 0:00:42]} h5 {[%emt 0:03:36]} 24. Rxd8 {[%emt 0:01:50]} Rxd8 {[%emt 0:02:00]} 25. Rc1 {[%emt 0:00:38]} Rd6 {[%emt 0:02:34]} 26. Rc5 {[%emt 0:01:53]} g6 {[%emt 0:00:12]} 27. Ra5 {[%emt 0:04:28]} Rd7 {[%emt 0:00:10]} 28. b4 {[%emt 0:00:09]} Kd8 {[%emt 0:03:36]} 29. Ra6 {[%emt 0:08:48]} Rc7 {[%emt 0:00:15]} 30. h4 {[%emt 0:03:40]} Kc8 {[%emt 0:01:29]} 31. Ra5 {[%emt 0:03:03]} 1/2-1/2

[Event "Dutch Open-ch 2019"]
[Site "Dieren"]
[Date "2019.07.26"]
[Round "4.4"]
[White "Hausrath, Daniel"]
[Black "Van Foreest, Lucas"]
[Result "0-1"]
[ECO "A12"]
[WhiteElo "2468"]
[BlackElo "2521"]
[Annotator "ChessBase"]
[PlyCount "90"]
[EventDate "2019.07.23"]
[EventType "swiss"]
[EventCountry "NED"]
[SourceTitle "playchess.com"]
[Source "ChessBase"]
[SourceQuality "1"]
[TimeControl "40/5400+30:1800+30"]

1. Nf3 {[%emt 0:00:00]} d5 {[%emt 0:00:00]} 2. b3 {[%emt 0:00:01]} Nf6 {[%emt 0:01:59]} 3. Bb2 {[%emt 0:00:21]} Bf5 {[%emt 0:01:07]} 4. c4 {[%emt 0:01:38]} e6 {[%emt 0:00:55]} 5. g3 {[%emt 0:02:36]} h6 {[%emt 0:00:44]} 6. Bg2 {[%emt 0:00:06]} Be7 {[%emt 0:00:13]} 7. O-O {[%emt 0:00:53]} O-O {[%emt 0:00:08]} 8. d3 {[%emt 0:00:07]} Nbd7 {[%emt 0:01:07]} 9. Nbd2 {[%emt 0:02:18]} c6 {[%emt 0:00:49]} 10. a3 {[%emt 0:02:56]} a5 {[%emt 0:00:10]} 11. Ra2 {[%emt 0:02:23]} Bh7 {[%emt 0:06:35]} 12. Qa1 {[%emt 0:01:54]} Ne8 {[%emt 0:02:48]} 13. Rb1 {[%emt 0:11:53]} g5 {[%emt 0:11:18]} 14. b4 {[%emt 0:07:21]} g4 {[%emt 0:05:13]} 15. Ne5 {[%emt 0:02:47]} Bg5 {[%emt 0:08:01]} 16. Rd1 {[%emt 0:17:59]} h5 {[%emt 0:02:54]} 17. Nxd7 {[%emt 0:02:08]} Qxd7 {[%emt 0:00:04]} 18. bxa5 {[%emt 0:08:49]} Rxa5 {[%emt 0:01:32]} 19. Bc3 {[%emt 0:00:09]} Ra8 {[%emt 0:00:48]} 20. cxd5 {[%emt 0:03:08]} exd5 {[%emt 0:02:07]} 21. Bb4 {[%emt 0:03:07]} Bf6 {[%emt 0:00:21]} 22. Qc1 {[%emt 0:00:44]} Nd6 {[%emt 0:01:05]} 23. Nb3 {[%emt 0:06:11]} Rfd8 {[%emt 0:06:24]} 24. Qf4 {[%emt 0:08:47]} Qe7 {[%emt 0:02:23]} 25. h4 {[%emt 0:03:23]} b6 {[%emt 0:02:56]} 26. Rc1 {[%emt 0:02:39]} c5 {[%emt 0:01:17]} 27. Bd2 {[%emt 0:00:28]} Qe6 {[%emt 0:02:21]} 28. a4 {[%emt 0:01:23]} Nf5 {[%emt 0:03:31]} 29. a5 {[%emt 0:02:44]} Qxe2 {[%emt 0:00:50]} 30. Bc3 {[%emt 0:00:54]} Qxa2 {[%emt 0:02:49]} 31. Bxf6 {[%emt 0:00:11]} Rd7 {[%emt 0:04:07]} 32. Nd2 {[%emt 0:00:33]} Qxa5 {[%emt 0:01:56]} 33. Re1 {[%emt 0:02:04]} Qa6 {[%emt 0:05:55]} 34. Re5 {[%emt 0:01:56]} Qxd3 {[%emt 0:00:48]} 35. Bf1 {[%emt 0:00:09]} Qc2 {[%emt 0:01:01]} 36. Ne4 {[%emt 0:02:09]} Qxe4 {[%emt 0:05:18]} 37. Rxe4 {[%emt 0:00:02]} dxe4 {[%emt 0:00:02]} 38. Qxe4 {[%emt 0:00:28]} Rf8 {[%emt 0:00:02]} 39. Qf4 {[%emt 0:00:41]} Bg6 {[%emt 0:00:29]} 40. Bg2 {[%emt 0:01:02]} Rd6 {[%emt 0:06:32]} 41. Be5 {[%emt 0:05:04]} Rd1+ {[%emt 0:02:40]} 42. Kh2 {[%emt 0:00:15]} Re8 {[%emt 0:00:44]} 43. Bc3 {[%emt 0:13:47]} Nd4 {[%emt 0:02:53]} 44. Qf6 {[%emt 0:00:54]} Re6 {[%emt 0:00:57]} 45. Qg5 {[%emt 0:01:41]} Re2 {[%emt 0:05:08]} 0-1

[Event "Dutch Open-ch 2019"]
[Site "Dieren"]
[Date "2019.07.26"]
[Round "4.5"]
[White "Ikonnikov, Vyacheslav"]
[Black "Lai, Hing Ting"]
[Result "1/2-1/2"]
[ECO "E15"]
[WhiteElo "2499"]
[BlackElo "2460"]
[Annotator "ChessBase"]
[PlyCount "41"]
[EventDate "2019.07.23"]
[EventType "swiss"]
[EventCountry "NED"]
[SourceTitle "playchess.com"]
[Source "ChessBase"]
[SourceQuality "1"]
[TimeControl "40/5400+30:1800+30"]

1. d4 {[%emt 0:00:00]} Nf6 {[%emt 0:20:10]} 2. Nf3 {[%emt 0:00:04]} e6 {[%emt 0:00:06]} 3. c4 {[%emt 0:00:14]} b6 {[%emt 0:00:10]} 4. g3 {[%emt 0:00:57]} Ba6 {[%emt 0:00:08]} 5. Nbd2 {[%emt 0:00:37]} d5 {[%emt 0:00:31]} 6. cxd5 {[%emt 0:01:44]} exd5 {[%emt 0:00:44]} 7. Bg2 {[%emt 0:00:07]} Bd6 {[%emt 0:00:12]} 8. O-O {[%emt 0:01:06]} O-O {[%emt 0:01:26]} 9. Nb1 {[%emt 0:04:06]} Re8 {[%emt 0:02:26]} 10. Nc3 {[%emt 0:00:11]} c6 {[%emt 0:02:28]} 11. Re1 {[%emt 0:09:14]} Nbd7 {[%emt 0:01:42]} 12. Bf4 {[%emt 0:00:57]} Nf8 {[%emt 0:12:50]} 13. Bxd6 {[%emt 0:16:04]} Qxd6 {[%emt 0:02:13]} 14. Ne5 {[%emt 0:00:18]} Bb7 {[%emt 0:03:32]} 15. e3 {[%emt 0:02:23]} N6d7 {[%emt 0:06:00]} 16. Nd3 {[%emt 0:04:53]} Ne6 {[%emt 0:04:39]} 17. b4 {[%emt 0:04:19]} a5 {[%emt 0:04:18]} 18. b5 {[%emt 0:18:33]} c5 {[%emt 0:03:17]} 19. dxc5 {[%emt 0:00:28]} bxc5 {[%emt 0:00:42]} 20. Nb2 {[%emt 0:00:08]} Nb6 {[%emt 0:02:13]} 21. Nba4 {[%emt 0:01:52]} 1/2-1/2

[Event "Dutch Open-ch 2019"]
[Site "Dieren"]
[Date "2019.07.26"]
[Round "4.6"]
[White "Bosboom, Manuel"]
[Black "Schoppen, Casper"]
[Result "0-1"]
[ECO "A08"]
[WhiteElo "2418"]
[BlackElo "2493"]
[Annotator "ChessBase"]
[PlyCount "72"]
[EventDate "2019.07.23"]
[EventType "swiss"]
[EventCountry "NED"]
[SourceTitle "playchess.com"]
[Source "ChessBase"]
[SourceQuality "1"]
[TimeControl "40/5400+30:1800+30"]

1. e4 {[%emt 0:00:02]} c5 {[%emt 0:05:27]} 2. Nf3 {[%emt 0:00:11]} Nc6 {[%emt 0:00:10]} 3. g3 {[%emt 0:02:06]} Nf6 {[%emt 0:02:10]} 4. d3 {[%emt 0:00:39]} d5 {[%emt 0:01:06]} 5. Nbd2 {[%emt 0:00:30]} g6 {[%emt 0:06:41]} 6. Bg2 {[%emt 0:00:28]} Bg7 {[%emt 0:00:05]} 7. O-O {[%emt 0:00:09]} O-O {[%emt 0:00:05]} 8. Re1 {[%emt 0:01:02]} Qc7 {[%emt 0:02:22]} 9. c3 {[%emt 0:06:20]} Rd8 {[%emt 0:08:22]} 10. exd5 {[%emt 0:25:46]} Nxd5 {[%emt 0:02:09]} 11. Qb3 {[%emt 0:02:26]} h6 {[%emt 0:10:48]} 12. Nc4 {[%emt 0:05:15]} Bf5 {[%emt 0:12:41]} 13. Nfe5 {[%emt 0:26:56]} Nxe5 {[%emt 0:02:29]} 14. Nxe5 {[%emt 0:00:08]} e6 {[%emt 0:02:26]} 15. f4 {[%emt 0:03:53]} g5 {[%emt 0:02:50]} 16. Qd1 {[%emt 0:10:34]} gxf4 {[%emt 0:02:32]} 17. gxf4 {[%emt 0:03:39]} f6 {[%emt 0:02:21]} 18. Ng4 {[%emt 0:03:21]} Nxf4 {[%emt 0:02:02]} 19. Bxf4 {[%emt 0:00:07]} Qxf4 {[%emt 0:00:06]} 20. Nf2 {[%emt 0:00:03]} Rab8 {[%emt 0:13:08]} 21. Qb3 {[%emt 0:02:06]} b5 {[%emt 0:01:13]} 22. Re4 {[%emt 0:03:08]} Bxe4 {[%emt 0:02:50]} 23. Qxe6+ {[%emt 0:00:05]} Kh8 {[%emt 0:00:08]} 24. Bxe4 {[%emt 0:00:28]} f5 {[%emt 0:00:23]} 25. Qxf5 {[%emt 0:01:14]} Qxf5 {[%emt 0:00:06]} 26. Bxf5 {[%emt 0:00:01]} b4 {[%emt 0:00:17]} 27. Rc1 {[%emt 0:01:42]} bxc3 {[%emt 0:00:06]} 28. bxc3 {[%emt 0:00:01]} Rb2 {[%emt 0:00:18]} 29. Be6 {[%emt 0:00:59]} Re8 {[%emt 0:00:07]} 30. Bc4 {[%emt 0:00:55]} Ree2 {[%emt 0:00:47]} 31. Ne4 {[%emt 0:00:27]} Be5 {[%emt 0:00:37]} 32. h4 {[%emt 0:00:43]} Rg2+ {[%emt 0:00:27]} 33. Kh1 {[%emt 0:00:18]} Rh2+ {[%emt 0:02:16]} 34. Kg1 {[%emt 0:00:01]} Rxh4 {[%emt 0:00:21]} 35. Nxc5 {[%emt 0:00:12]} Bh2+ {[%emt 0:00:41]} 36. Kf1 {[%emt 0:00:06]} Rf4+ {[%emt 0:00:07]} 0-1

[Event "Dutch Open-ch 2019"]
[Site "Dieren"]
[Date "2019.07.26"]
[Round "4.7"]
[White "Zwirs, Nico"]
[Black "Das, Arghyadip"]
[Result "1/2-1/2"]
[ECO "C47"]
[WhiteElo "2380"]
[BlackElo "2439"]
[Annotator "NA"]
[PlyCount "82"]
[EventDate "2019.07.23"]
[EventType "swiss"]
[EventCountry "NED"]
[SourceTitle "playchess.com"]
[Source "ChessBase"]
[SourceQuality "1"]
[TimeControl "40/5400+30:1800+30"]

1. e4 {[%emt 0:00:00]} e5 {[%emt 0:00:00]} 2. Nf3 {[%emt 0:00:00]} Nc6 {[%emt 0:00:00]} 3. Nc3 {[%emt 0:04:36]} Nf6 {[%emt 0:00:09]} 4. d4 {[%emt 0:00:12]} exd4 {[%emt 0:00:45]} 5. Nxd4 {[%emt 0:00:16]} Bc5 $11 {[%emt 0:05:29]} 6. Be3 {[%emt 0:02:42]} Bb6 {[%emt 0:00:04]} 7. Qd2 {[%emt 0:05:19]} O-O {[%emt 0:08:44]} 8. O-O-O {[%emt 0:02:11]} Re8 {[%emt 0:09:50]} 9. f3 {[%emt 0:00:50]} d5 {[%emt 0:10:34]} 10. exd5 {[%emt 0:10:37]} Nxd5 {[%emt 0:06:14]} 11. Bg5 {[%emt 0:02:35]} f6 {[%emt 0:17:26]} 12. Bc4 {[%emt 0:02:10]} Nxd4 {[%emt 0:01:34]} 13. Nxd5 {[%emt 0:03:04]} Be6 {[%emt 0:06:39]} 14. Nxb6 {[%emt 0:38:11]} axb6 {[%emt 0:03:09]} 15. Qxd4 {[%emt 0:00:12]} Qxd4 {[%emt 0:00:42]} 16. Bxe6+ {[%emt 0:00:08]} Rxe6 {[%emt 0:00:03]} 17. Rxd4 {[%emt 0:00:07]} fxg5 {[%emt 0:00:42]} 18. a3 {[%emt 0:00:08]} Rae8 {[%emt 0:07:05]} 19. Rhd1 {[%emt 0:00:48]} Kf7 {[%emt 0:01:04]} 20. Rd7+ {[%emt 0:01:14]} R8e7 {[%emt 0:00:37]} 21. Rxe7+ {[%emt 0:02:27]} Kxe7 {[%emt 0:19:40]} 22. Rd5 {[%emt 0:00:10]} h6 {[%emt 0:00:00]} 23. Kd2 {[%emt 0:04:32]} Rf6 {[%emt 0:00:00]} 24. Re5+ {[%emt 0:01:32]} Kf7 {[%emt 0:00:00]} 25. b3 {[%emt 0:04:28]} Rd6+ {[%emt 0:00:00]} 26. Ke2 {[%emt 0:00:08]} Rc6 {[%emt 0:00:00]} 27. Kd2 {[%emt 0:01:16]} Rd6+ {[%emt 0:00:00]} 28. Ke2 {[%emt 0:00:05]} Rc6 {[%emt 0:00:00]} 29. c4 {[%emt 0:00:47]} Re6 {[%emt 0:00:09]} 30. Rxe6 {[%emt 0:01:52]} Kxe6 {[%emt 0:00:01]} 31. Ke3 {[%emt 0:00:13]} Ke5 {[%emt 0:00:10]} 32. g3 {[%emt 0:00:26]} c6 {[%emt 0:00:38]} 33. Kd3 {[%emt 0:05:05]} c5 {[%emt 0:00:54]} 34. Ke3 {[%emt 0:00:09]} Kf5 {[%emt 0:00:24]} 35. h3 {[%emt 0:05:24]} Ke5 {[%emt 0:02:04]} 36. Kd3 {[%emt 0:00:20]} Kf5 {[%emt 0:00:11]} 37. Ke3 {[%emt 0:01:34]} Ke5 {[%emt 0:00:00]} 38. Kd3 {[%emt 0:00:16]} Kf5 {[%emt 0:00:04]} 39. Ke2 {[%emt 0:00:46]} Ke6 {[%emt 0:01:32]} 40. Kf2 {[%emt 0:02:02]} Kf5 {[%emt 0:00:19]} 41. Ke3 {[%emt 0:17:03]} Ke5 {[%emt 0:33:34]} 1/2-1/2

[Event "Dutch Open-ch 2019"]
[Site "Dieren"]
[Date "2019.07.26"]
[Round "4.8"]
[White "Lahaye, Rick"]
[Black "Konings, Frans"]
[Result "1-0"]
[ECO "A13"]
[WhiteElo "2421"]
[BlackElo "2208"]
[Annotator "NA"]
[PlyCount "55"]
[EventDate "2019.07.23"]
[EventType "swiss"]
[EventCountry "NED"]
[SourceTitle "playchess.com"]
[Source "ChessBase"]
[SourceQuality "1"]
[TimeControl "40/5400+30:1800+30"]

1. e3 {[%emt 0:00:00]} d5 {[%emt 0:01:03]} 2. Nf3 {[%emt 0:00:00]} Nf6 {[%emt 0:00:36]} 3. b3 {[%emt 0:00:15]} e6 {[%emt 0:00:12]} 4. Bb2 {[%emt 0:00:06]} Be7 {[%emt 0:00:04]} 5. c4 {[%emt 0:00:10]} O-O {[%emt 0:00:36]} 6. Qc2 {[%emt 0:00:36]} b6 {[%emt 0:00:36]} 7. Be2 {[%emt 0:05:20]} Bb7 {[%emt 0:00:27]} 8. d3 {[%emt 0:01:03]} c5 {[%emt 0:00:31]} 9. Nbd2 {[%emt 0:00:36]} Nc6 {[%emt 0:00:13]} 10. a3 $15 {[%emt 0:00:45]} Nd7 {[%emt 0:07:18]} 11. cxd5 {[%emt 0:02:06]} exd5 {[%emt 0:00:06]} 12. d4 {[%emt 0:00:04]} cxd4 {[%emt 0:02:13]} 13. Nxd4 {[%emt 0:00:56]} Nxd4 {[%emt 0:00:40]} 14. Bxd4 {[%emt 0:00:15]} Bf6 {[%emt 0:01:46]} 15. Nf3 {[%emt 0:00:11]} Rc8 {[%emt 0:01:26]} 16. Qb2 {[%emt 0:01:01]} Qe7 {[%emt 0:00:46]} 17. O-O {[%emt 0:00:34]} Bxd4 {[%emt 0:01:37]} 18. Nxd4 {[%emt 0:00:15]} g6 {[%emt 0:01:03]} 19. Bg4 {[%emt 0:07:22]} f5 {[%emt 0:01:37]} 20. Bf3 {[%emt 0:01:40]} Ne5 {[%emt 0:02:07]} 21. Be2 {[%emt 0:03:23]} f4 {[%emt 0:03:10]} 22. exf4 {[%emt 0:01:58]} Rxf4 {[%emt 0:00:05]} 23. Rad1 {[%emt 0:09:51]} Nc6 {[%emt 0:09:45]} 24. Nxc6 {[%emt 0:01:21]} Bxc6 {[%emt 0:00:24]} 25. g3 {[%emt 0:00:48]} Rf6 {[%emt 0:03:27]} 26. Bg4 {[%emt 0:13:51]} Re8 {[%emt 0:03:18]} 27. Rde1 {[%emt 0:01:45]} Qxe1 {[%emt 0:00:55]} 28. Qxf6 {[%emt 0:00:16]} 1-0

[Event "Dutch Open-ch 2019"]
[Site "Dieren"]
[Date "2019.07.26"]
[Round "4.9"]
[White "Maatman, Nick"]
[Black "Baselmans, Sam"]
[Result "1/2-1/2"]
[ECO "E95"]
[WhiteElo "2407"]
[BlackElo "2064"]
[Annotator "NA"]
[PlyCount "57"]
[EventDate "2019.07.23"]
[EventType "swiss"]
[EventCountry "NED"]
[SourceTitle "playchess.com"]
[Source "ChessBase"]
[SourceQuality "1"]
[TimeControl "40/5400+30:1800+30"]

1. d4 {[%emt 0:06:46]} Nf6 {[%emt 0:00:00]} 2. c4 {[%emt 0:00:05]} g6 {[%emt 0:00:00]} 3. Nc3 {[%emt 0:00:02]} Bg7 {[%emt 0:00:00]} 4. e4 {[%emt 0:00:02]} d6 {[%emt 0:00:00]} 5. Be2 {[%emt 0:00:03]} O-O {[%emt 0:00:18]} 6. Nf3 {[%emt 0:00:02]} Na6 {[%emt 0:00:10]} 7. O-O {[%emt 0:04:05]} e5 {[%emt 0:00:05]} 8. Re1 {[%emt 0:00:08]} exd4 {[%emt 0:06:10]} 9. Nxd4 {[%emt 0:00:59]} Nc5 {[%emt 0:00:06]} 10. Bf1 {[%emt 0:07:22]} Re8 {[%emt 0:00:30]} 11. f3 {[%emt 0:01:17]} c6 {[%emt 0:13:23]} 12. Be3 {[%emt 0:08:57]} Be6 {[%emt 0:04:13]} 13. Qd2 {[%emt 0:04:07]} Qc7 $16 {[%emt 0:01:28]} 14. Rad1 {[%emt 0:04:02]} Rad8 {[%emt 0:01:03]} 15. Qf2 {[%emt 0:00:14]} Bc8 {[%emt 0:04:08]} 16. Nc2 {[%emt 0:15:58]} Ncd7 {[%emt 0:05:00]} 17. Bf4 {[%emt 0:05:28]} Ne5 {[%emt 0:02:54]} 18. Qxa7 {[%emt 0:01:07]} Be6 {[%emt 0:03:45]} 19. Na3 {[%emt 0:09:31]} Nh5 {[%emt 0:05:21]} 20. Bg5 {[%emt 0:08:01]} f6 {[%emt 0:02:33]} 21. Be3 {[%emt 0:02:31]} Qf7 {[%emt 0:00:19]} 22. Qa4 {[%emt 0:04:46]} f5 {[%emt 0:02:13]} 23. exf5 {[%emt 0:01:51]} gxf5 {[%emt 0:00:41]} 24. Qc2 {[%emt 0:02:11]} Rd7 {[%emt 0:07:23]} 25. b3 {[%emt 0:00:40]} f4 {[%emt 0:01:12]} 26. Bf2 {[%emt 0:01:33]} Bf5 {[%emt 0:00:16]} 27. Qd2 {[%emt 0:02:35]} Qg6 {[%emt 0:02:26]} 28. Kh1 {[%emt 0:00:05]} Bh6 {[%emt 0:03:08]} 29. Ne4 {[%emt 0:02:11]} 1/2-1/2

[Event "Dutch Open-ch 2019"]
[Site "Dieren"]
[Date "2019.07.26"]
[Round "4.10"]
[White "Evengroen, Henk-Jan"]
[Black "Maris, Ivo"]
[Result "0-1"]
[ECO "A41"]
[WhiteElo "2176"]
[BlackElo "2399"]
[Annotator "NA"]
[PlyCount "42"]
[EventDate "2019.07.23"]
[EventType "swiss"]
[EventCountry "NED"]
[SourceTitle "playchess.com"]
[Source "ChessBase"]
[SourceQuality "1"]
[TimeControl "40/5400+30:1800+30"]

1. d4 {[%emt 0:00:00]} d6 {[%emt 1:30:30]} 2. c4 {[%emt 0:00:00]} e5 {[%emt 0:00:00]} 3. Nc3 {[%emt 0:00:00]} g6 {[%emt 0:00:00]} 4. Nf3 {[%emt 0:00:10]} Nd7 {[%emt 0:00:00]} 5. d5 $11 {[%emt 0:11:25]} a5 {[%emt 0:00:00]} 6. Qa4 {[%emt 0:15:48]} Bg7 {[%emt 0:00:00]} 7. c5 {[%emt 0:02:42]} dxc5 {[%emt 0:00:00]} 8. Bg5 {[%emt 0:12:03]} Ngf6 {[%emt 0:00:00]} 9. Nxe5 {[%emt 0:02:25]} O-O {[%emt 0:00:00]} 10. Nxd7 {[%emt 0:07:22]} Qxd7 {[%emt 0:00:00]} 11. Qxd7 {[%emt 0:05:06]} Bxd7 {[%emt 0:00:00]} 12. g3 {[%emt 0:01:41]} b5 {[%emt 0:00:00]} 13. Bg2 {[%emt 0:06:10]} Rfe8 {[%emt 0:00:00]} 14. O-O {[%emt 0:11:08]} b4 {[%emt 0:00:00]} 15. Bxf6 {[%emt 0:00:06]} Bxf6 {[%emt 0:00:00]} 16. Ne4 {[%emt 0:01:51]} Bxb2 {[%emt 0:00:00]} 17. Rad1 {[%emt 0:00:05]} c4 {[%emt 0:00:00]} 18. d6 {[%emt 0:04:42]} cxd6 {[%emt 0:00:00]} 19. Rxd6 {[%emt 0:05:31]} Be6 {[%emt 0:00:00]} 20. Rc6 {[%emt 0:01:03]} c3 {[%emt 0:00:00]} 21. Rxe6 {[%emt 0:03:15]} Rxe6 {[%emt 0:00:00]} 0-1

[Event "Dutch Open-ch 2019"]
[Site "Dieren"]
[Date "2019.07.26"]
[Round "4.11"]
[White "Odendahl, Reiner"]
[Black "Van Helvoort, Rob"]
[Result "1-0"]
[ECO "A37"]
[WhiteElo "2352"]
[BlackElo "2104"]
[Annotator "NA"]
[PlyCount "77"]
[EventDate "2019.07.23"]
[EventType "swiss"]
[EventCountry "NED"]
[SourceTitle "playchess.com"]
[Source "ChessBase"]
[SourceQuality "1"]
[TimeControl "40/5400+30:1800+30"]

1. c4 {[%emt 0:00:00]} c5 {[%emt 0:00:00]} 2. g3 {[%emt 0:00:00]} g6 {[%emt 0:00:00]} 3. Bg2 {[%emt 0:00:00]} Bg7 {[%emt 0:00:00]} 4. Nf3 {[%emt 0:00:13]} Nc6 {[%emt 0:00:01]} 5. O-O {[%emt 0:00:11]} d6 {[%emt 0:00:12]} 6. Nc3 {[%emt 0:00:19]} Bf5 {[%emt 0:00:18]} 7. d3 {[%emt 0:03:11]} Qd7 {[%emt 0:00:24]} 8. Re1 {[%emt 0:00:47]} Bh3 {[%emt 0:00:12]} 9. Bh1 {[%emt 0:00:16]} h6 {[%emt 0:00:15]} 10. Rb1 $11 {[%emt 0:03:50]} e6 {[%emt 0:01:49]} 11. Bd2 {[%emt 0:03:18]} Nge7 {[%emt 0:01:05]} 12. a3 {[%emt 0:03:43]} g5 {[%emt 0:00:45]} 13. Qa4 {[%emt 0:09:11]} O-O {[%emt 0:15:04]} 14. b4 {[%emt 0:03:17]} Rac8 {[%emt 0:07:17]} 15. bxc5 {[%emt 0:07:44]} dxc5 {[%emt 0:00:01]} 16. Qb5 {[%emt 0:00:23]} b6 {[%emt 0:00:18]} 17. a4 {[%emt 0:00:11]} Nf5 {[%emt 0:05:26]} 18. a5 {[%emt 0:15:30]} Nd6 {[%emt 0:01:21]} 19. Qa4 {[%emt 0:00:58]} bxa5 {[%emt 0:03:27]} 20. Rec1 {[%emt 0:06:18]} f5 {[%emt 0:08:02]} 21. Be3 {[%emt 0:03:59]} Bxc3 {[%emt 0:02:36]} 22. Rxc3 {[%emt 0:00:08]} Nd4 {[%emt 0:00:20]} 23. Qd1 {[%emt 0:00:53]} f4 {[%emt 0:24:51]} 24. Bxd4 {[%emt 0:04:12]} cxd4 {[%emt 0:00:07]} 25. Ra3 {[%emt 0:00:21]} Rc5 {[%emt 0:06:18]} 26. Qe1 {[%emt 0:02:09]} g4 {[%emt 0:12:16]} 27. Nh4 {[%emt 0:02:57]} Qf7 {[%emt 0:00:52]} 28. Rba1 {[%emt 0:01:17]} Nf5 {[%emt 0:02:27]} 29. Ng2 {[%emt 0:01:14]} Bxg2 {[%emt 0:01:49]} 30. Bxg2 {[%emt 0:00:29]} f3 {[%emt 0:00:46]} 31. Bf1 {[%emt 0:16:28]} Ne3 {[%emt 0:00:45]} 32. R1a2 {[%emt 0:02:43]} Rf5 {[%emt 0:00:30]} 33. exf3 {[%emt 0:00:56]} gxf3 {[%emt 0:04:07]} 34. Rxa5 {[%emt 0:01:01]} Rxa5 {[%emt 0:00:35]} 35. Rxa5 {[%emt 0:00:51]} Nxf1 {[%emt 0:00:06]} 36. Qxf1 {[%emt 0:01:49]} Rb8 {[%emt 0:00:38]} 37. h4 {[%emt 0:00:38]} Rb2 {[%emt 0:01:48]} 38. Qc1 {[%emt 0:01:37]} Qc7 {[%emt 0:00:32]} 39. Rh5 {[%emt 0:00:00]} 1-0